bitfinex/quotes_BTCUSD_20260110
["timestamp","ask_amount","ask_price","bid_price","bid_amount"]
[1768074174593,0.01103423,90627.0,90617.0,0.01231474]
[1768074174971,0.02208,90626.0,90617.0,0.01231474]
[1768074175445,0.02208,90625.0,90617.0,0.01231474]
[1768074175652,0.02208,90624.0,90617.0,0.01231474]
[1768074207102,0.02208,90624.0,90617.0,0.00127868]
[1768074232704,0.02208,90624.0,90617.0,0.0475782]
[1768074245772,0.02208,90624.0,90618.0,0.04839079]
[1768074260878,0.02208,90626.0,90618.0,0.04839079]
[1768074274543,0.03103399,90629.0,90618.0,0.04839079]
[1768074274717,0.02208,90626.0,90618.0,0.04839079]
[1768074274919,0.03103399,90629.0,90618.0,0.04839079]
[1768074275125,0.02208,90626.0,90618.0,0.04839079]
[1768074279850,0.03103399,90629.0,90618.0,0.04839079]
[1768074279990,0.02208,90626.0,90618.0,0.04839079]
[1768074280192,0.02,90629.0,90618.0,0.04839079]
[1768074280391,0.02208,90628.0,90618.0,0.04839079]
[1768074280618,0.02208,90628.0,90618.0,0.34095479]
[1768074282177,0.03103399,90629.0,90618.0,0.34095479]
[1768074282391,0.02208,90627.0,90618.0,0.34095479]
[1768074282586,0.03103399,90629.0,90618.0,0.34095479]
[1768074282868,0.05311399,90629.0,90618.0,0.34095479]
[1768074283080,0.04208,90629.0,90618.0,0.34095479]
[1768074283582,0.05311399,90629.0,90618.0,0.34095479]
[1768074283791,0.04208,90629.0,90618.0,0.34095479]
[1768074284014,0.05311399,90629.0,90618.0,0.34095479]
[1768074284555,0.04208,90629.0,90618.0,0.34095479]
[1768074284788,0.05311399,90629.0,90618.0,0.34095479]
[1768074286455,0.04208,90629.0,90618.0,0.34095479]
[1768074293308,0.05311399,90629.0,90618.0,0.34095479]
[1768074293798,0.04208,90629.0,90618.0,0.34095479]
[1768074294165,0.05311399,90629.0,90618.0,0.34095479]
[1768074294618,0.04208,90629.0,90618.0,0.34095479]
[1768074296221,0.02,90629.0,90619.0,0.04534989]
[1768074296408,0.02208,90628.0,90619.0,0.04534989]
[1768074297652,0.02208,90628.0,90619.0,0.0563851]
[1768074300260,0.02208,90628.0,90621.0,0.04534989]
[1768074300827,0.02,90629.0,90621.0,0.04534989]
[1768074301160,0.02208,90627.0,90621.0,0.04534989]
[1768074301400,0.02,90629.0,90621.0,0.04534989]
[1768074301601,0.02208,90628.0,90621.0,0.04534989]
[1768074301816,0.02,90629.0,90621.0,0.04534989]
[1768074302216,0.02208,90628.0,90621.0,0.04534989]
[1768074302360,0.02,90629.0,90621.0,0.04534989]
[1768074302565,0.02208,90628.0,90621.0,0.04534989]
[1768074302760,0.02,90629.0,90621.0,0.04534989]
[1768074303223,0.02208,90628.0,90621.0,0.0370812]
[1768074303431,0.02,90629.0,90618.0,0.292564]
[1768074303683,0.02208,90628.0,90617.0,0.01231413]
[1768074303891,0.03103399,90629.0,90618.0,0.292564]
[1768074304102,0.02,90629.0,90618.0,0.292564]
[1768074304317,0.07188813,90628.0,90618.0,0.292564]
[1768074304743,0.02208,90627.0,90618.0,0.292564]
[1768074305786,0.04980813,90628.0,90618.0,0.292564]
[1768074305984,0.02208,90627.0,90618.0,0.292564]
[1768074306201,0.04980813,90628.0,90618.0,0.292564]
[1768074306402,0.02208,90627.0,90618.0,0.292564]
[1768074307579,0.04980813,90628.0,90618.0,0.292564]
[1768074307793,0.02208,90627.0,90618.0,0.292564]
[1768074312106,0.02208,90628.0,90618.0,0.292564]
[1768074314431,0.02208,90628.0,90618.0,0.30359933]
[1768074314930,0.02,90629.0,90618.0,0.30359933]
[1768074315111,0.02208,90628.0,90618.0,0.30359933]
[1768074316289,0.02,90629.0,90619.0,0.01103521]
[1768074316530,0.02208,90628.0,90618.0,0.30359933]
[1768074316910,0.02208,90628.0,90619.0,0.01103521]
[1768074317247,0.02208,90628.0,90618.0,0.30359933]
[1768074318127,0.02,90629.0,90618.0,0.30359933]
[1768074318333,0.04208,90629.0,90618.0,0.30359933]
[1768074319967,0.04208,90629.0,90618.0,0.292564]
[1768074320632,0.05311399,90629.0,90618.0,0.292564]
[1768074320841,0.04208,90629.0,90618.0,0.292564]
[1768074321038,0.01103411,90628.0,90618.0,0.292564]
[1768074321273,0.01103436,90626.0,90618.0,0.292564]
[1768074321694,0.01103411,90628.0,90618.0,0.292564]
[1768074321898,0.01103423,90627.0,90618.0,0.292564]
[1768074322884,0.01103411,90628.0,90618.0,0.292564]
[1768074323090,0.01103423,90627.0,90618.0,0.292564]
[1768074323567,0.01103411,90628.0,90618.0,0.292564]
[1768074328764,0.01103423,90627.0,90618.0,0.292564]
[1768074328952,0.01103411,90628.0,90618.0,0.292564]
[1768074329195,0.01103423,90627.0,90618.0,0.292564]
[1768074330874,0.01103436,90626.0,90618.0,0.292564]
[1768074331760,0.01103448,90625.0,90618.0,0.292564]
[1768074331919,0.01103436,90626.0,90618.0,0.292564]
[1768074332611,0.01103448,90625.0,90618.0,0.292564]
[1768074332763,0.0110346,90624.0,90618.0,0.292564]
[1768074333112,0.01103448,90625.0,90617.0,0.00127868]
[1768074333242,0.06084249,90626.0,90617.0,0.00127868]
[1768074336140,0.04980813,90626.0,90617.0,0.00127868]
[1768074336344,0.06084249,90626.0,90617.0,0.00127868]
[1768074336776,0.04980813,90626.0,90617.0,0.00127868]
[1768074338083,0.01103423,90627.0,90617.0,0.00127868]
[1768074338322,0.01103411,90628.0,90617.0,0.00127868]
[1768074338479,0.01103423,90627.0,90617.0,0.00127868]
[1768074339433,0.01103436,90626.0,90617.0,0.00127868]
[1768074339864,0.01103423,90627.0,90617.0,0.00127868]
[1768074340074,0.01103436,90626.0,90617.0,0.00127868]
[1768074341130,0.01103423,90627.0,90617.0,0.00127868]
[1768074344862,0.01103436,90626.0,90617.0,0.00127868]
[1768074345065,0.01103423,90627.0,90617.0,0.00127868]
[1768074347275,0.01103436,90626.0,90617.0,0.00127868]
[1768074347745,0.01103423,90627.0,90617.0,0.00127868]
[1768074348073,0.01103436,90626.0,90617.0,0.00127868]
[1768074348384,0.01103448,90625.0,90617.0,0.00127868]
[1768074348692,0.01087091,90626.0,90617.0,0.00127868]
[1768074349596,0.01103423,90627.0,90617.0,0.00127868]
[1768074351820,0.01103436,90626.0,90617.0,0.00127868]
[1768074356638,0.01103472,90623.0,90617.0,0.00127868]
[1768074356842,0.01103472,90623.0,90608.0,0.03311655]
[1768074356843,0.05737367,90623.0,90608.0,0.02208]
[1768074357066,0.01103545,90617.0,90610.0,0.03311466]
[1768074357244,0.01103545,90617.0,90608.0,0.02208]
[1768074357469,0.01103557,90616.0,90609.0,0.03311479]
[1768074358540,0.01103618,90611.0,90603.0,0.00050726]
[1768074358689,0.04633895,90611.0,90603.0,0.00050726]
[1768074358958,0.0573755,90608.0,90603.0,0.00050726]
[1768074359148,0.04633895,90608.0,90603.0,0.00050726]
[1768074360145,0.0573755,90608.0,90603.0,0.00050726]
[1768074360354,0.04633895,90596.0,90593.0,0.0001498]
[1768074360550,0.04633895,90595.0,90593.0,0.0001498]
[1768074360752,0.04633895,90595.0,90593.0,0.00010476]
[1768074364466,0.04633895,90595.0,90593.0,5.972e-05]
[1768074371266,0.04633895,90595.0,90593.0,1.468e-05]
[1768074373760,0.01103789,90597.0,90593.0,1.468e-05]
[1768074373972,0.0479829,90596.0,90593.0,1.468e-05]
[1768074384107,0.0700629,90598.0,90593.0,1.468e-05]
[1768074385439,0.0479829,90597.0,90593.0,1.468e-05]
[1768074388797,0.02208,90598.0,90597.0,0.000999]
[1768074389223,0.02208,90598.0,90593.0,1.468e-05]
[1768074389570,0.05902006,90603.0,90593.0,1.468e-05]
[1768074389571,0.0479829,90603.0,90593.0,1.468e-05]
[1768074389776,0.02208,90602.0,90593.0,1.468e-05]
[1768074390182,0.0479829,90603.0,90593.0,1.468e-05]
[1768074390386,0.02208,90602.0,90593.0,1.468e-05]
[1768074390589,0.0700629,90602.0,90593.0,1.468e-05]
[1768074392299,0.0700629,90602.0,90593.0,0.01105306]
[1768074392506,0.0700629,90602.0,90594.0,0.01103825]
[1768074392639,0.0700629,90602.0,90593.0,0.01105306]
[1768074394574,0.0700629,90602.0,90594.0,0.01103825]
[1768074395783,0.02208,90602.0,90594.0,0.01103825]
[1768074396184,0.02208,90602.0,90593.0,0.0571481]
[1768074396785,0.02208,90602.0,90593.0,0.01105306]
[1768074397707,0.02208,90602.0,90594.0,0.01103825]
[1768074398273,0.02208,90602.0,90593.0,0.01105306]
[1768074398484,0.02208,90602.0,90594.0,0.01103825]
[1768074400551,0.02208,90602.0,90595.0,0.01103813]
[1768074400761,0.02208,90602.0,90596.0,0.04609504]
[1768074404701,0.02208,90602.0,90594.0,0.01103825]
[1768074405733,0.07023595,90602.0,90594.0,0.01103825]
[1768074407101,0.07023595,90602.0,90595.0,0.01103813]
[1768074407923,0.07023595,90602.0,90594.0,0.01103825]
[1768074408462,0.07023595,90602.0,90595.0,0.01103813]
[1768074409021,0.07023595,90602.0,90594.0,0.01103825]
[1768074409219,0.02208,90602.0,90594.0,0.01103825]
[1768074409877,0.02208,90602.0,90595.0,0.01103813]
[1768074410100,0.02208,90602.0,90594.0,0.01103825]
[1768074410966,0.02208,90602.0,90594.0,0.05713329]
[1768074411687,0.02208,90602.0,90595.0,0.05713317]
[1768074411958,0.01103862,90609.0,90598.0,0.04609504]
[1768074412164,0.02208,90608.0,90602.0,0.04709404]
[1768074412377,0.00050237,90611.0,90602.0,0.04709404]
[1768074412378,0.00050237,90611.0,90602.0,0.04609504]
[1768074412555,0.00050237,90611.0,90602.0,0.05713232]
[1768074412556,0.02258237,90611.0,90602.0,0.05713232]
[1768074413252,0.02258237,90611.0,90603.0,0.01103716]
[1768074414466,0.04557752,90610.0,90603.0,0.01103716]
[1768074419478,0.04557752,90610.0,90602.0,0.01103728]
[1768074419687,0.04557752,90610.0,90603.0,0.01103716]
[1768074420280,0.02258237,90611.0,90603.0,0.01103716]
[1768074420474,0.02258237,90611.0,90601.0,0.0110374]
[1768074420682,0.02258237,90611.0,90603.0,0.01103716]
[1768074420882,0.02258237,90611.0,90602.0,0.01103728]
[1768074422923,0.02258237,90611.0,90600.0,0.05774667]
[1768074423364,0.02258237,90611.0,90600.0,0.04670915]
[1768074423803,0.02258237,90611.0,90600.0,0.05774667]
[1768074424021,0.02258237,90611.0,90600.0,0.04670915]
[1768074424428,0.00050237,90611.0,90600.0,0.05670915]
[1768074424648,0.00050237,90611.0,90600.0,0.06774667]
[1768074425677,0.00050237,90611.0,90600.0,0.36048647]
[1768074426369,0.00050237,90611.0,90600.0,0.06774667]
[1768074426530,0.00050237,90611.0,90600.0,0.36048647]
[1768074426957,0.00050237,90611.0,90600.0,0.34944895]
[1768074427384,0.01153855,90611.0,90600.0,0.05670915]
[1768074427793,0.0110363,90610.0,90600.0,0.05670915]
[1768074428016,0.01103643,90609.0,90600.0,0.05670915]
[1768074428159,0.0110363,90610.0,90600.0,0.05666411]
[1768074429239,0.01153855,90611.0,90600.0,0.05666411]
[1768074429831,0.01103704,90604.0,90600.0,0.01]
[1768074430235,0.05518655,90602.0,90600.0,0.01]
[1768074431182,0.06622298,90603.0,90600.0,0.01]
[1768074431394,0.01103716,90603.0,90600.0,0.01]
[1768074432269,0.06622303,90603.0,90600.0,0.01]
[1768074437034,0.01103716,90603.0,90600.0,0.01]
[1768074438312,0.01103691,90605.0,90600.0,0.01]
[1768074438950,0.01103704,90604.0,90600.0,0.01]
[1768074439665,0.01103716,90603.0,90600.0,0.01]
[1768074439893,0.01103704,90604.0,90600.0,0.01]
[1768074440652,0.01103716,90603.0,90600.0,0.01]
[1768074446624,0.01103704,90604.0,90600.0,0.01]
[1768074450772,0.01103716,90603.0,90600.0,0.01]
[1768074451674,0.01103704,90604.0,90600.0,0.01]
[1768074452733,0.01103716,90603.0,90600.0,0.01]
[1768074455056,0.01103704,90604.0,90600.0,0.01]
[1768074455258,0.01103691,90605.0,90600.0,0.01]
[1768074455463,0.01103704,90604.0,90600.0,0.01]
[1768074456823,0.01103691,90605.0,90600.0,0.01]
[1768074457025,0.01103704,90604.0,90600.0,0.01]
[1768074458960,0.01103691,90605.0,90600.0,0.01]
[1768074460159,0.01103704,90604.0,90600.0,0.01]
[1768074463266,0.01103691,90605.0,90600.0,0.01]
[1768074464004,0.01103704,90604.0,90600.0,0.01]
[1768074464226,0.00791527,90604.0,90600.0,0.01]
[1768074464458,0.05497861,90604.0,90600.0,0.01]
[1768074464702,0.04914452,90604.0,90600.0,0.01]
[1768074467127,0.07726291,90608.0,90600.0,0.01]
[1768074467128,0.02208,90608.0,90600.0,0.01]
[1768074467347,0.04914452,90607.0,90600.0,0.01]
[1768074470090,0.03311655,90608.0,90600.0,0.01]
[1768074471241,0.02208,90608.0,90600.0,0.01]
[1768074472209,0.03311655,90608.0,90600.0,0.01]
[1768074473023,0.02208,90608.0,90600.0,0.01]
[1768074473678,0.03311655,90608.0,90600.0,0.01]
[1768074474697,0.02208,90608.0,90600.0,0.01]
[1768074477119,0.02208,90608.0,90600.0,0.02103752]
[1768074477315,0.021081,90608.0,90601.0,0.0110374]
[1768074477550,0.021081,90608.0,90600.0,0.0667702]
[1768074477718,0.021081,90608.0,90601.0,0.0110374]
[1768074477937,0.021081,90608.0,90600.0,0.0667702]
[1768074478442,0.021081,90608.0,90600.0,0.05573268]
[1768074482989,0.021081,90608.0,90600.0,0.0667702]
[1768074483389,0.021081,90608.0,90600.0,0.05573268]
[1768074484718,0.021081,90608.0,90600.0,0.0667702]
[1768074489070,0.021081,90608.0,90601.0,0.0110374]
[1768074489870,0.021081,90608.0,90600.0,0.0667702]
[1768074490404,0.021081,90608.0,90600.0,0.05573268]
[1768074500585,0.021081,90608.0,90600.0,0.01]
[1768074500789,0.04943886,90607.0,90600.0,0.01]
[1768074505812,0.02208,90610.0,90600.0,0.01]
[1768074506899,0.02208,90610.0,90600.0,0.02103752]
[1768074507453,0.04943886,90609.0,90600.0,0.02103752]
[1768074507814,0.04943886,90609.0,90601.0,0.0110374]
[1768074508198,0.04372467,90609.0,90603.0,0.01103716]
[1768074508399,0.02208,90610.0,90602.0,0.01103728]
[1768074509262,0.02208,90610.0,90601.0,0.0110374]
[1768074509622,0.02208,90610.0,90600.0,0.01]
[1768074509965,0.02208,90610.0,90601.0,0.0110374]
[1768074511747,0.02208,90610.0,90602.0,0.01103728]
[1768074511926,0.02208,90610.0,90600.0,0.02103752]
[1768074512382,0.02208,90610.0,90600.0,0.01]
[1768074513098,0.02208,90610.0,90600.0,0.05564201]
[1768074522320,0.02208,90610.0,90600.0,0.06667953]
[1768074522501,0.02208,90610.0,90600.0,0.05564201]
[1768074523550,0.02208,90610.0,90600.0,0.06667953]
[1768074524243,0.02208,90610.0,90600.0,0.05564201]
[1768074524434,0.02208,90610.0,90600.0,0.06667953]
[1768074525694,0.02208,90610.0,90601.0,0.0110374]
[1768074525959,0.02208,90610.0,90600.0,0.06667953]
[1768074526695,0.02208,90610.0,90600.0,0.35936456]
[1768074528229,0.02208,90610.0,90601.0,0.0110374]
[1768074528893,0.02208,90610.0,90600.0,0.31372255]
[1768074529499,0.04596476,90609.0,90600.0,0.30268503]
[1768074530832,0.04596476,90609.0,90600.0,0.31372255]
[1768074531656,0.04596476,90609.0,90601.0,0.0110374]
[1768074534510,0.04596476,90609.0,90600.0,0.30268503]
[1768074534715,0.04596476,90609.0,90600.0,0.31372255]
[1768074534967,0.04596476,90609.0,90600.0,0.30268503]
[1768074535142,0.02208,90610.0,90600.0,0.31372255]
[1768074535929,0.02208,90610.0,90600.0,0.30268503]
[1768074536771,0.02208,90610.0,90600.0,0.31372255]
[1768074536997,0.02208,90610.0,90600.0,0.36009228]
[1768074538070,0.02208,90610.0,90600.0,0.34905476]
[1768074538258,0.02208,90610.0,90600.0,0.36009228]
[1768074540005,0.02208,90610.0,90600.0,0.34905476]
[1768074540316,0.02208,90610.0,90601.0,0.04636973]
[1768074543333,0.04772595,90609.0,90600.0,0.30268503]
[1768074545418,0.04772595,90609.0,90600.0,0.01]
[1768074548277,0.04772595,90609.0,90600.0,0.02103752]
[1768074548480,0.04772595,90609.0,90600.0,0.01]
[1768074548636,0.02208,90610.0,90600.0,0.01]
[1768074548959,0.04722903,90609.0,90600.0,0.01]
[1768074553772,0.02208,90610.0,90600.0,0.01]
[1768074554144,0.02208,90610.0,90602.0,0.01103728]
[1768074555178,0.02208,90610.0,90601.0,0.0110374]
[1768074555736,0.00050237,90611.0,90601.0,0.0110374]
[1768074555737,0.00050237,90611.0,90602.0,0.01103728]
[1768074556153,0.00050237,90611.0,90601.0,0.05743893]
[1768074558937,0.00050237,90611.0,90602.0,0.01103728]
[1768074559945,0.00050237,90611.0,90603.0,0.01103716]
[1768074561094,0.00050237,90611.0,90602.0,0.01103728]
[1768074562086,0.00050237,90611.0,90601.0,0.05743893]
[1768074563337,0.00050237,90611.0,90602.0,0.01103728]
[1768074568569,0.00050237,90611.0,90601.0,0.05743893]
[1768074568766,0.00050237,90611.0,90602.0,0.01103728]
[1768074570696,0.00050237,90611.0,90601.0,0.05743893]
[1768074571044,0.00050237,90611.0,90603.0,0.01103716]
[1768074572124,0.00050237,90611.0,90604.0,0.01103704]
[1768074572314,0.00050237,90611.0,90603.0,0.01103716]
[1768074572537,0.00050237,90611.0,90604.0,0.01103704]
[1768074572683,0.00050237,90611.0,90603.0,0.01103716]
[1768074574587,0.00050237,90611.0,90603.0,0.0109923]
[1768074580662,0.00050237,90611.0,90603.0,0.01103716]
[1768074582484,0.00050237,90611.0,90602.0,0.01103728]
[1768074583115,0.00050237,90611.0,90601.0,0.05743893]
[1768074584501,0.00050237,90611.0,90602.0,0.01103728]
[1768074587753,0.00050237,90611.0,90603.0,0.01103716]
[1768074590005,0.00050237,90611.0,90602.0,0.01103728]
[1768074590753,0.00050237,90611.0,90601.0,0.0110374]
[1768074592244,0.00050237,90611.0,90601.0,0.05826279]
[1768074592860,0.00050237,90611.0,90601.0,0.04722539]
[1768074593062,0.00050237,90611.0,90601.0,0.05826279]
[1768074593625,0.00050237,90611.0,90601.0,0.04722539]
[1768074595270,0.00050237,90611.0,90601.0,0.05826279]
[1768074597472,0.00050237,90611.0,90601.0,0.04722539]
[1768074598179,0.00050237,90611.0,90601.0,0.05826279]
[1768074598386,0.00050237,90611.0,90601.0,0.04722539]
[1768074600521,0.00050237,90611.0,90601.0,0.05826279]
[1768074600695,0.00050237,90611.0,90602.0,0.01103728]
[1768074600898,0.00050237,90611.0,90601.0,0.05826279]
[1768074601303,0.00050237,90611.0,90601.0,0.04722539]
[1768074602281,0.00050237,90611.0,90601.0,0.05826279]
[1768074604470,0.00050237,90611.0,90602.0,0.01103728]
[1768074605225,0.00050237,90611.0,90601.0,0.05826279]
[1768074605676,0.00050237,90611.0,90602.0,0.01103728]
[1768074605866,0.00050237,90611.0,90601.0,0.05826279]
[1768074606326,0.00050237,90611.0,90601.0,0.04722539]
[1768074606527,0.00050237,90611.0,90601.0,0.05826279]
[1768074606749,0.00050237,90611.0,90601.0,0.04722539]
[1768074607451,0.00050237,90611.0,90601.0,0.05826279]
[1768074607929,0.00050237,90611.0,90602.0,0.01103728]
[1768074608145,0.00050237,90611.0,90601.0,0.05826279]
[1768074608146,0.00050237,90611.0,90601.0,0.04722539]
[1768074608732,0.00050237,90611.0,90601.0,0.05826279]
[1768074608940,0.00050237,90611.0,90602.0,0.01103728]
[1768074610982,0.00050237,90611.0,90601.0,0.05826279]
[1768074611160,0.00050237,90611.0,90601.0,0.04722539]
[1768074611486,0.00050237,90611.0,90601.0,0.05826279]
[1768074611820,0.00050237,90611.0,90601.0,0.04722539]
[1768074616977,0.02258237,90611.0,90601.0,0.04722539]
[1768074617852,0.02258237,90611.0,90600.0,0.02103752]
[1768074618279,0.02258237,90611.0,90600.0,0.01]
[1768074619663,0.02258237,90611.0,90600.0,0.02103752]
[1768074620319,0.02258237,90611.0,90600.0,0.01]
[1768074620530,0.02258237,90611.0,90600.0,0.02103752]
[1768074621656,0.02258237,90611.0,90601.0,0.0110374]
[1768074622491,0.02258237,90611.0,90602.0,0.01103728]
[1768074622711,0.02258237,90611.0,90601.0,0.0110374]
[1768074622908,0.02258237,90611.0,90602.0,0.01103728]
[1768074623130,0.02258237,90611.0,90601.0,0.0110374]
[1768074623412,0.00050237,90611.0,90601.0,0.0110374]
[1768074630749,0.00050237,90611.0,90600.0,0.01]
[1768074631117,0.00050237,90611.0,90600.0,0.02103752]
[1768074631319,0.00050237,90611.0,90601.0,0.0110374]
[1768074634347,0.00050237,90611.0,90600.0,0.02103752]
[1768074636378,0.00050237,90611.0,90601.0,0.0110374]
[1768074636583,0.00050237,90611.0,90600.0,0.01]
[1768074636811,0.00050237,90611.0,90601.0,0.0110374]
[1768074636941,0.00050237,90611.0,90600.0,0.02103752]
[1768074640633,0.00050237,90611.0,90601.0,0.0110374]
[1768074641412,0.00050237,90611.0,90602.0,0.01103728]
[1768074641633,0.00050237,90611.0,90601.0,0.0110374]
[1768074643058,0.00050237,90611.0,90603.0,0.01103716]
[1768074643267,0.00050237,90611.0,90603.0,0.0108812]
[1768074643439,0.00050237,90611.0,90602.0,0.01103728]
[1768074644381,0.00050237,90611.0,90603.0,0.01103716]
[1768074644944,0.01153977,90611.0,90603.0,0.01103716]
[1768074647484,0.0585842,90611.0,90603.0,0.01103716]
[1768074647958,0.0585842,90611.0,90602.0,0.01103728]
[1768074650835,0.0585842,90611.0,90601.0,0.0110374]
[1768074651007,0.0585842,90611.0,90602.0,0.01103728]
[1768074651212,0.0585842,90611.0,90601.0,0.0110374]
[1768074652060,0.0585842,90611.0,90602.0,0.01103728]
[1768074652439,0.01153977,90611.0,90602.0,0.01103728]
[1768074652778,0.01153977,90611.0,90601.0,0.0110374]
[1768074654438,0.01153977,90611.0,90602.0,0.01103728]
[1768074655213,0.01153977,90611.0,90603.0,0.01103716]
[1768074655401,0.01153977,90611.0,90602.0,0.01103728]
[1768074655574,0.01153977,90611.0,90603.0,0.01103716]
[1768074655790,0.01153977,90611.0,90603.0,0.058368]
[1768074656372,0.00050237,90611.0,90603.0,0.058368]
[1768074656565,0.00050237,90611.0,90604.0,0.01103704]
[1768074657419,0.00050237,90611.0,90603.0,0.058368]
[1768074657626,0.00050237,90611.0,90604.0,0.01103704]
[1768074660500,0.00050237,90611.0,90603.0,0.058368]
[1768074660721,0.00050237,90611.0,90604.0,0.01103704]
[1768074666933,0.00050237,90611.0,90605.0,0.01103691]
[1768074667914,0.00050237,90611.0,90604.0,0.01103704]
[1768074668126,0.00050237,90611.0,90606.0,0.01103679]
[1768074668335,0.00035606,90611.0,90605.0,0.01103691]
[1768074669280,0.00035606,90611.0,90606.0,0.01103679]
[1768074669537,0.00035606,90611.0,90605.0,0.01103691]
[1768074670334,0.00035606,90611.0,90606.0,0.01103679]
[1768074670535,0.00035606,90611.0,90605.0,0.01103691]
[1768074672590,0.00020948,90611.0,90606.0,0.01103679]
[1768074672797,0.00020948,90611.0,90604.0,0.01103704]
[1768074674223,0.00020948,90611.0,90605.0,0.01103691]
[1768074675142,0.00020948,90611.0,90604.0,0.01103704]
[1768074675942,0.00020948,90611.0,90605.0,0.01103691]
[1768074676149,0.00020948,90611.0,90604.0,0.01103704]
[1768074677381,0.00020948,90611.0,90605.0,0.01103691]
[1768074677594,0.00020948,90611.0,90604.0,0.01103704]
[1768074678222,0.00020948,90611.0,90605.0,0.01103691]
[1768074684502,0.00020948,90611.0,90604.0,0.01103704]
[1768074684861,0.00020948,90611.0,90603.0,0.01103716]
[1768074685066,0.00020948,90611.0,90604.0,0.01103704]
[1768074686133,0.00020948,90611.0,90605.0,0.01103691]
[1768074686872,0.00020948,90611.0,90604.0,0.01103704]
[1768074687357,0.00020948,90611.0,90605.0,0.01103691]
[1768074688374,0.00020948,90611.0,90604.0,0.01103704]
[1768074690268,0.00020948,90611.0,90605.0,0.01103691]
[1768074692366,0.00020948,90611.0,90604.0,0.01103704]
[1768074693233,0.00020948,90611.0,90605.0,0.01103691]
[1768074694232,0.00020948,90611.0,90604.0,0.01103704]
[1768074694896,0.00020948,90611.0,90603.0,0.01103716]
[1768074696743,0.00020948,90611.0,90604.0,0.01103704]
[1768074697527,0.00020948,90611.0,90603.0,0.01103716]
[1768074698044,0.00011937,90611.0,90603.0,0.01103716]
[1768074699571,0.01018085,90615.0,90604.0,0.01103704]
[1768074699767,0.01018085,90615.0,90603.0,0.01103716]
[1768074700108,0.01018085,90615.0,90604.0,0.01103704]
[1768074701195,0.01018085,90615.0,90603.0,0.01103716]
[1768074701388,0.01018085,90615.0,90604.0,0.01103704]
[1768074702000,0.01018085,90615.0,90603.0,0.01103716]
[1768074704152,0.01018085,90615.0,90604.0,0.01103704]
[1768074705109,0.01018085,90615.0,90603.0,0.01103716]
[1768074705657,0.01018085,90615.0,90604.0,0.01103704]
[1768074707169,0.01018085,90615.0,90603.0,0.01103716]
[1768074707759,0.01018085,90615.0,90604.0,0.01103704]
[1768074707968,0.01018085,90615.0,90605.0,0.01103691]
[1768074709038,0.05545508,90615.0,90605.0,0.01103691]
[1768074711306,0.05545508,90615.0,90604.0,0.01103704]
[1768074711908,0.01018085,90615.0,90604.0,0.01103704]
[1768074713340,0.01018085,90615.0,90605.0,0.01103691]
[1768074713679,0.01018085,90615.0,90604.0,0.01103704]
[1768074715060,0.01018085,90615.0,90605.0,0.01103691]
[1768074715235,0.02208,90616.0,90605.0,0.01103691]
[1768074715430,0.04416,90616.0,90605.0,0.01103691]
[1768074717690,0.04416,90616.0,90604.0,0.01103704]
[1768074719369,0.04416,90616.0,90605.0,0.01103691]
[1768074719797,0.04416,90616.0,90604.0,0.01103704]
[1768074720098,0.05519557,90616.0,90603.0,0.01103716]
[1768074720491,0.04416,90616.0,90604.0,0.01103704]
[1768074720888,0.05519557,90616.0,90603.0,0.01103716]
[1768074721103,0.04416,90616.0,90604.0,0.01103704]
[1768074721299,0.05519557,90616.0,90602.0,0.01103728]
[1768074721542,0.05519557,90616.0,90603.0,0.01103716]
[1768074721729,0.04416,90616.0,90604.0,0.01103704]
[1768074721926,0.04416,90616.0,90603.0,0.01103716]
[1768074722530,0.05519557,90616.0,90603.0,0.01103716]
[1768074723249,0.04416,90616.0,90603.0,0.01103716]
[1768074723456,0.05519557,90616.0,90604.0,0.01103704]
[1768074723819,0.04416,90616.0,90604.0,0.01103704]
[1768074726357,0.04416,90616.0,90605.0,0.01103691]
[1768074729148,0.04416,90616.0,90604.0,0.01103704]
[1768074730272,0.04416,90616.0,90605.0,0.01103691]
[1768074737265,0.04416,90616.0,90601.0,0.05518696]
[1768074737686,0.04416,90616.0,90603.0,0.01103716]
[1768074737867,0.03311557,90616.0,90602.0,0.01103728]
[1768074738089,0.0110357,90615.0,90602.0,0.01103728]
[1768074738490,0.04415648,90615.0,90602.0,0.01103728]
[1768074738741,0.04415648,90615.0,90601.0,0.0110374]
[1768074738893,0.04415648,90615.0,90602.0,0.01103728]
[1768074739090,0.04415648,90615.0,90601.0,0.0110374]
[1768074739298,0.03312078,90615.0,90602.0,0.01103728]
[1768074739520,0.04415648,90615.0,90602.0,0.01103728]
[1768074739728,0.01103582,90614.0,90601.0,0.0110374]
[1768074740132,0.04415648,90615.0,90602.0,0.01103728]
[1768074740420,0.04415648,90615.0,90601.0,0.0110374]
[1768074740421,0.01103582,90614.0,90601.0,0.0110374]
[1768074740829,0.0110357,90615.0,90601.0,0.0110374]
[1768074741028,0.01103582,90614.0,90600.0,0.02103752]
[1768074741232,0.03207334,90614.0,90600.0,0.02103752]
[1768074741438,0.02103752,90614.0,90602.0,0.01103728]
[1768074741863,0.02103752,90614.0,90600.0,0.02103752]
[1768074742598,0.02103752,90614.0,90601.0,0.0110374]
[1768074742961,0.03207334,90614.0,90601.0,0.0110374]
[1768074744369,0.02103752,90614.0,90602.0,0.01103728]
[1768074745080,0.02103752,90614.0,90603.0,0.01103716]
[1768074745444,0.02103752,90614.0,90602.0,0.01103728]
[1768074746494,0.02103752,90614.0,90603.0,0.01103716]
[1768074747384,0.02103752,90614.0,90604.0,0.01103704]
[1768074751070,0.02103752,90614.0,90603.0,0.01103716]
[1768074751222,0.02103752,90614.0,90602.0,0.01103728]
[1768074751429,0.02103752,90614.0,90603.0,0.01103716]
[1768074753337,0.02103752,90614.0,90602.0,0.01103728]
[1768074753845,0.02103752,90614.0,90603.0,0.01103716]
[1768074755642,0.02103752,90614.0,90604.0,0.01103704]
[1768074756079,0.02103752,90614.0,90602.0,0.01103728]
[1768074758398,0.02103752,90614.0,90603.0,0.01103716]
[1768074758550,0.02103752,90614.0,90602.0,0.01103728]
[1768074761704,0.02103752,90614.0,90603.0,0.01103716]
[1768074762408,0.02103752,90614.0,90602.0,0.01103728]
[1768074762609,0.02103752,90614.0,90603.0,0.01103716]
[1768074764455,0.02103752,90614.0,90604.0,0.01103704]
[1768074764625,0.02103752,90614.0,90603.0,0.01103716]
[1768074765642,0.02103752,90614.0,90604.0,0.01103704]
[1768074765829,0.02103752,90614.0,90605.0,0.01103691]
[1768074765992,0.02103752,90614.0,90604.0,0.01103704]
[1768074766952,0.02103752,90614.0,90605.0,0.01103691]
[1768074767343,0.02103752,90614.0,90604.0,0.01103704]
[1768074767589,0.02103752,90614.0,90605.0,0.01103691]